Cogmind - Beta 16 @@@ ROGUE MODE // 2025.12.28 @ 23:12:18 Player: Gatamar Result: Destroyed by Piercing Trap Performance ------------- Evolutions (0) 0 Regions Visited (3) 600 Robots Destroyed (12) 60 Value Destroyed (283) 283 Prototype IDs (0) 0 Alien Tech Used (0) 0 Bonus (0) 0 TOTAL SCORE: 943 Bonus ------- None Cogmind --------- Core Integrity 0/250 Matter 245/300 Energy 156/160 System Corruption 10% Temperature Cool (2) Movement Treading (240) Ox1 Location -10/Subcaves Parts ------- > --- POWER (1) -------- Light Nuclear Core > --- PROPULSION (2) --- Light Treads > --- UTILITY (2) ------ Medium Storage Unit > --- WEAPON (2) ------- Beam Cannon Beam Cannon > --- INVENTORY (10) --- Ion Engine Light Ion Engine Aluminum Leg Aluminum Leg Large Matter Pod (57) Assault Rifle Light Assault Rifle Rocket Launcher Mining Laser Mining Laser Peak State ------------ > --- POWER ------------ Light Nuclear Core > --- PROPULSION ------- Light Treads Light Treads > --- UTILITY ---------- Medium Storage Unit > --- WEAPON ----------- Beam Cannon Beam Cannon > --- INVENTORY -------- Ion Engine Light Ion Engine Aluminum Leg Aluminum Leg Large Matter Pod Assault Rifle Light Assault Rifle Rocket Launcher Mining Laser Mining Laser [Rating: 9] Favorites ----------- Power Ion Engine Engine Ion Engine Power Core Light Nuclear Core Propulsion Light Treads Treads Light Treads Utility Medium Storage Unit Device Terrain Scanner Storage Medium Storage Unit Processor Signal Interpreter Weapon Beam Cannon Energy Gun Medium Laser Energy Cannon Beam Cannon Ballistic Gun Assault Rifle Special Weapon Mining Laser Build | -11 -10 -10 -10 ------- Run | Yrd Mat Min Sub Slots Evolved . | . . . . Power . | . . . . Propulsion . | . . . . Utility . | . . . . Weapon . | . . . . Parts Attached 17 | 6 10 1 . Power 3 | 1 2 . . Engine 2 | 1 1 . . Core 1 | . 1 . . Reactor . | . . . . Propulsion 4 | 2 1 1 . Treads 4 | 2 1 1 . Leg . | . . . . Wheel . | . . . . Hover . | . . . . Flight . | . . . . Utility 4 | 1 3 . . Device 1 | . 1 . . Storage 2 | 1 1 . . Processor 1 | . 1 . . Hackware . | . . . . Protection . | . . . . Artifact . | . . . . Weapon 6 | 2 4 . . Energy Gun 1 | 1 . . . Energy Cannon 2 | . 2 . . Ballistic Gun 2 | 1 1 . . Ballistic Cannon . | . . . . Launcher . | . . . . Special Weapon 1 | . 1 . . Impact Weapon . | . . . . Slashing Weapon . | . . . . Piercing Weapon . | . . . . Special Melee Weapon . | . . . . Unidentified Prototypes . | . . . . Parts Lost 6 | . 5 . 1 Power 1 | . 1 . . Propulsion 2 | . 1 . 1 Utility 2 | . 2 . . Weapon 1 | . 1 . . Highest Loss Streak 2 | . 2 . 1 To Critical Strikes . | . . . . Average Backups 8 | 1 8 9 10 Power 1 | . 1 2 2 Propulsion 2 | 1 2 2 2 Utility 1 | . 1 1 1 Weapon 2 | . 2 4 5 Tool/Special . | . . . . Unused Backups 6 | . . . 6 Power 1 | . . . 1 Propulsion 2 | . . . 2 Utility 1 | . . . 1 Weapon 2 | . . . 2 Tool/Special . | . . . . Average Slot Usage (%) 86 | . 86 85 85 Engine 8 | . 11 . . Core 5 | . 2 14 14 Treads 24 | . 23 28 28 Device 3 | . 4 . . Storage 14 | . 14 14 14 Processor 1 | . 1 . . Energy Gun 1 | . 2 . . Energy Cannon 11 | . 5 28 28 Ballistic Gun 12 | . 16 . . Special Weapon 1 | . 2 . . Peak Build Rating 9 | 6 8 9 9 Average Rating 7 | 4 6 8 9 On Entrance 5 | . 6 8 9 Avg Prop Armor Cover (%) . | . . . . Naked Turns . | . . . . Heaviest Build 21 | 14 21 21 21 Greatest Support 40 | 40 40 40 40 Greatest Overweight (x) 1 | . 1 . . Average Overweight (x) . | . . . . Largest Inventory Capacity 10 | 8 10 10 10 Average Capacity 9 | 6 9 10 10 Most Carried 10 | 3 10 10 10 Average Carried 8 | 1 8 9 10 Final Capacity 10 | 8 10 10 10 Final Carried 10 | 3 10 10 10 Class Distribution -------------------- 100% | Mutant Dominant Class ---------------- Mutant | -10/Materials Mutant | -10/Mines Mutant | -10/Subcaves Resources | -11 -10 -10 -10 ----------- Run | Yrd Mat Min Sub Matter Collected 554 | 221 262 . 71 Remotely . | . . . . Salvage Created 354 | . 354 . . Parts 24 | . 24 . . Haulers Intercepted 1 | . 1 . . Recyclers Shooed 1 | . 1 . . Parts Field Recycled . | . . . . Retrieved Matter . | . . . . Parts Self-Destructed 9 | . . . 9 Prevented . | . . . . Parts Restored . | . . . . Kills | -11 -10 -10 -10 ------- Run | Yrd Mat Min Sub Combat Hostiles Destroyed 9 | . 9 . . Guns 7 | . 7 . . Cannons 2 | . 2 . . Classes Destroyed 5 | . 5 . . Builder 1 | . 1 . . Hauler 1 | . 1 . . Watcher 1 | . 1 . . Swarmer 3 | . 3 . . Grunt 6 | . 6 . . Best Kill Streak 3 | . 3 . . Combat Bots Only 3 | . 3 . . Max Kills in Single Turn 1 | . 1 . . Gunslinging . | . . . . Exploded . | . . . . Melee . | . . . . Uniques/NPCs Destroyed . | . . . . Combat | -11 -10 -10 -10 -------- Run | Yrd Mat Min Sub Hostile Shots Fired 58 | . 58 . . Missed 14 | . 14 . . Hits 44 | . 44 . . Projectile 44 | . 44 . . Critical Strikes 1 | . 1 . . Damage Taken 1249 | . 1121 . 128 Core 253 | . 208 . 45 Absorbed by Shields . | . . . . Core Remaining (%) 100 | 100 . . . Volleys Fired 50 | . 49 . 1 Largest 2 | . 2 . 1 Hottest 120 | . 120 . 60 Shots Fired 87 | . 86 . 1 Gun 61 | . 61 . . Cannon 13 | . 12 . 1 Launcher . | . . . . Special 13 | . 13 . . Kinetic 46 | . 46 . . Thermal 41 | . 40 . 1 Explosive . | . . . . Electromagnetic . | . . . . Robot Hit Streak 4 | . 4 . . Robot Miss Streak 4 | . 4 . . Penetration Max . | . . . . Secondary Targets 1 | . 1 . . Max Gunslinging Chain 1 | . 1 . . Shots Hit Robots 36 | . 36 . . Core Hits 21 | . 21 . . Critical Kills . | . . . . Critical Parts Destroyed . | . . . . Critical Strikes . | . . . . Melee Attacks . | . . . . Impact . | . . . . Slashing . | . . . . Piercing . | . . . . Sneak Attacks . | . . . . Combat Hostiles . | . . . . Follow-up Attacks . | . . . . Damage Inflicted 460 | . 460 . . Guns 348 | . 348 . . Cannons 88 | . 88 . . Explosions . | . . . . Melee . | . . . . Ramming . | . . . . Kinetic 261 | . 261 . . Thermal 199 | . 199 . . Explosive . | . . . . Electromagnetic . | . . . . Impact . | . . . . Slashing . | . . . . Piercing . | . . . . Highest Corruption 10 | . 10 10 10 Average Corruption 9 | . 8 10 10 Corruption Purged . | . . . . Corruption Blocked . | . . . . Effects 18 | . 6 3 9 Message Errors 3 | . 1 . 2 Matter Fused 7 | . 3 1 3 Heat Flow Errors 3 | . . 1 2 Energy Discharges 1 | . . 1 . Data Loss (minor) 4 | . 2 . 2 Overload Shots . | . . . . Overflow Damage . | . . . . Projectiles . | . . . . Explosions . | . . . . Melee . | . . . . Knockbacks . | . . . . Impact . | . . . . Kinetic . | . . . . Secondary . | . . . . Self-Inflicted Damage . | . . . . Shots . | . . . . Rammed . | . . . . Targets Rammed . | . . . . Kicked . | . . . . Crushed . | . . . . Highest Temperature 339 | . 339 160 262 Average Temperature 61 | . 55 84 123 Received Heat Transfer 219 | . 219 . . Effects 2 | . 2 . . Interference 1 | . 1 . . Matter Decay 1 | . 1 . . Siege Activations . | . . . . Martial Activations . | . . . . Shielding Activations . | . . . . Robots Disrupted . | . . . . Combat Hostiles . | . . . . Robots Corrupted . | . . . . Combat Hostiles . | . . . . Parts Fried . | . . . . Impact Corruptions . | . . . . Robots Melted . | . . . . Combat Hostiles . | . . . . Parts Melted 1 | . 1 . . Heat Transferred 494 | . 494 . . Parts Sabotaged . | . . . . Parts Stolen . | . . . . Parts Stripped . | . . . . Power Chain Reactions . | . . . . Alert | -11 -10 -10 -10 ------- Run | Yrd Mat Min Sub Maximum Alert Level . | . . . . Low Security (%) 100 | 100 100 100 . Level 1 . | . . . . Level 2 . | . . . . Level 3 . | . . . . Level 4 . | . . . . Level 5 . | . . . . High Security . | . . . . Max Security . | . . . . Peak Influence 60 | . 60 . . Initial . | . . . . Average 10 | . 12 . . Influence Increases 244 | . 244 . . Destroy 0b10 Robot/C 180 | . 180 . . Destroy 0b10 Robot/NC 15 | . 15 . . Destroy Leader 34 | . 34 . . Successful Hack 6 | . 6 . . Destroy Structure 9 | . 9 . . Influence Decreases 244 | . 244 . . Time Decay 230 | . 230 . . Lost Part 14 | . 14 . . Squads Dispatched 3 | . 3 . . Investigation 1 | . 1 . . Extermination . | . . . . Reinforcement 2 | . 2 . . Assault . | . . . . Garrison . | . . . . Intercept . | . . . . Searches Triggered . | . . . . Construction Impeded . | . . . . Haulers Reinforced . | . . . . Active Scanning Responses . | . . . . Cargo Convoy Interrupts . | . . . . Stealth | -11 -10 -10 -10 --------- Run | Yrd Mat Min Sub Distress Signals 1 | . 1 . . Communications Jammed . | . . . . Distress Signals . | . . . . Times Spotted 14 | . 14 . . Peak Tracking Total 3 | . 3 . . Tactical Retreats . | . . . . Traps | -11 -10 -10 -10 ------- Run | Yrd Mat Min Sub Traps Triggered 3 | . . . 3 Indirectly . | . . . . Trap Hack Attempts . | . . . . Triggered . | . . . . Disarmed 6 | . 6 . . Reprogrammed . | . . . . Reused . | . . . . Traps Extracted . | . . . . Installed . | . . . . Triggered . | . . . . Machines | -11 -10 -10 -10 ---------- Run | Yrd Mat Min Sub Machines Disabled . | . . . . Max in Single Turn . | . . . . Machines Repaired . | . . . . Machines Dismantled . | . . . . Machines Sabotaged . | . . . . Overloaded Fab Kills . | . . . . Hacking | -11 -10 -10 -10 --------- Run | Yrd Mat Min Sub Machines Accessed 3 | . 3 . . Terminals 3 | . 3 . . Fabricators . | . . . . Repair Stations . | . . . . Recycling Units . | . . . . Scanalyzers . | . . . . Garrison Access . | . . . . Total Hacks 11 | . 11 . . Successful 4 | . 4 . . Failed 7 | . 7 . . Catastrophic 1 | . 1 . . Database Lockouts . | . . . . Manual 3 | . 3 . . Terminals 11 | . 11 . . Fabricators . | . . . . Repair Stations . | . . . . Recycling Units . | . . . . Scanalyzers . | . . . . Garrison Access . | . . . . Terminal Hacks 3 | . 3 . . Alert Level 1 | . 1 . . Disarm Traps 1 | . 1 . . Assault Status 1 | . 1 . . Fabricator Hacks . | . . . . Repair Station Hacks . | . . . . Recycling Unit Hacks . | . . . . Scanalyzer . | . . . . Garrison Access Hacks . | . . . . Unauthorized Hacks 1 | . 1 . . Terminals 1 | . 1 . . Assimilate 1 | . 1 . . Fabricators . | . . . . Repair Stations . | . . . . Recycling Units . | . . . . Scanalyzers . | . . . . Garrison Access . | . . . . Data Cores Recovered . | . . . . Used . | . . . . Hacking Detections 2 | . 2 . . Full Trace Events 1 | . 1 . . Feedback Events . | . . . . Feedback Blocked . | . . . . Robot Schematics Acquired . | . . . . Robots Built . | . . . . Authchips . | . . . . Time . | . . . . Total Robot Build Rating . | . . . . Part Schematics Acquired . | . . . . Parts Built . | . . . . Authchips . | . . . . Time . | . . . . Total Part Build Rating . | . . . . Part Studies Acquired . | . . . . Parts Repaired . | . . . . Time . | . . . . Parts Recycled . | . . . . Recycled Matter . | . . . . Retrieved Matter . | . . . . Retrieved Components . | . . . . Parts Scanalyzed . | . . . . Part Schematics Acquired . | . . . . Parts Damaged . | . . . . Bothacking | -11 -10 -10 -10 ------------ Run | Yrd Mat Min Sub Used RIF Installer . | . . . . Robots Hacked . | . . . . Non-combat . | . . . . Combat . | . . . . Robot Hacks Applied . | . . . . Relay Couplers Released . | . . . . Fabnet Peak Effective % . | . . . . Robots Rewired . | . . . . Allies Hacked . | . . . . Hacks Repelled . | . . . . Allies | -11 -10 -10 -10 -------- Run | Yrd Mat Min Sub Total Allies . | . . . . Largest Group . | . . . . Highest-Rated Group . | . . . . Highest-Rated Ally . | . . . . Total Orders . | . . . . Ally Attacks . | . . . . Total Damage . | . . . . Kills . | . . . . Allies Corrupted . | . . . . Allies Melted . | . . . . Intel | -11 -10 -10 -10 ------- Run | Yrd Mat Min Sub Active Infowar (turns) 334 | . 334 . . Terrain 334 | . 334 . . Robot Analysis Total . | . . . . Derelict Logs Recovered 2 | . . 1 1 Drone Launches . | . . . . Drone Recoveries . | . . . . Exploration | -11 -10 -10 -10 ------------- Run | Yrd Mat Min Sub Turns Passed 1410 | 81 985 121 223 Spaces Moved 691 | 46 433 75 137 Core 3 | 3 . . . Treads 688 | 43 433 75 137 Legs . | . . . . Wheels . | . . . . Hover . | . . . . Flight . | . . . . Fastest Speed 50 | 50 160 160 160 Average Speed 168 | 152 174 160 160 Slowest Speed 240 | 160 240 160 160 Overloaded Moves . | . . . . Propulsion Burnouts . | . . . . Robots Hopped . | . . . . Potential Cave-ins . | . . . . Cave-ins Triggered 2 | . 2 . . Exploration Rate (%) 23 | 4 49 27 15 Regions Visited 3 Branch Regions 2 Pre-discovered Areas 1 | . . 1 . Known Exits Taken . | . . . . Unknown Exits Taken 3 | 1 1 1 . Scrap Searched . | . . . . Spaces Dug 11 | . 11 . . Terrain Destroyed 11 | . 11 . . Melee . | . . . . Projectile 11 | . 11 . . AOE . | . . . . Terrain Rammed . | . . . . Walls Destroyed . | . . . . Machines Disabled . | . . . . Actions | -11 -10 -10 -10 --------- Run | Yrd Mat Min Sub Total 822 | 54 554 76 138 Wait 49 | . 49 . . Move 688 | 45 432 74 137 Hop . | . . . . Pick Up 14 | 3 10 1 . Fast Attach 8 | 6 2 . . Attach 4 | . 3 1 . Detach 1 | . 1 . . Swap 5 | . 5 . . Drop 3 | . 3 . . Fire 50 | . 49 . 1 Melee . | . . . . Ram . | . . . . Kick . | . . . . Crush . | . . . . Escape Stasis . | . . . . Rewire . | . . . . Trap . | . . . . Miscellaneous . | . . . . Route ------- -11/Scrapyard -10/Materials (discovered 2 exits: *Mat / [*Min]) -10/Mines -10/Subcaves History --------- Turn | Location | Event 27 | -11/Scrapyard | Discovered new exit (range 16) 82 | -11/Scrapyard | Entered Materials 310 | -10/Materials | Discovered new exit (range 13) 314 | -10/Materials | Build established: Mutant 753 | -10/Materials | Crushed by falling debris 795 | -10/Materials | Discovered new exit (range 3) 797 | -10/Materials | Identified exit to Materials 841 | -10/Materials | Crushed by falling debris 841 | -10/Materials | Core integrity fell below 50% 841 | -10/Materials | System corruption reached 10% 879 | -10/Materials | Core integrity fell below 20% 1067 | -10/Materials | Entered Mines 1074 | -10/Mines | Received a Rocket Launcher from a helpful Derelict 1085 | -10/Mines | Learned Materials stockpile data 1152 | -10/Mines | Learned location of Storage (-7) 1178 | -10/Mines | Discovered new exit (range 7) 1181 | -10/Mines | Met a Derelict bent on vengeance 1188 | -10/Mines | Entered Subcaves 1268 | -10/Subcaves | Learned 2 Materials zone layouts 1411 | -10/Subcaves | Destroyed by Piercing Trap Last Messages --------------- Data stored: Materials zone layouts (x2). 01280_ Acquired 14 matter. 01283_ Acquired 11 matter. 01300_ System corrupted: Heat flow error (+219). 01320_ Triggered Piercing Trap. 01320_ Spikes shoot up from the floor. 01320_ Critical hit (Impale). 01330_ JI2,Q:F Q,REPSOS OUZ4GDXKKXTKDBE% T9A 01350_ System corrupted: Component data lost. 01360_ Triggered Piercing Trap. 01360_ Spikes shoot up from the floor. 01360_ Critical hit (Impale). 01368_ System corrupted: Matter fused (-7). 01388_ System corrupted: Matter fused (-8). 01409_ SR1ZUIAEXXVCASQCOKXY> 01411_ Triggered Piercing Trap. 01411_ Spikes shoot up from the floor. 01411_ Critical hit (Impale). 01411_ Lgt. Treads destroyed. 01411_ Critical hit (Impale). Map ----- +----------------------------------------------------+ | | | | | | | ?????????????????????????????????????????????????? | | ?????????????????????????????????????????????????? | | ?????????????????????????????????????????????????? | | ?????????????????????????????????????????????????? | | ?????????????????????????????????????????????????? | | ?????????????????????????????????????????????????? | | ?????????????????????????????????????????????????? | | ?????????????????????????????????????????????????? | | ?????????????????????????????????????????????????? | | ?????????????????????????????????????????????????? | | ?????????????????????????????????????????????????? | | ?????????????????????????????????????????????????? | | ?????????????????????????????????????????????????? | | ?????????????????????????????????????????????????? | | ?????????????????????????????????????????????????? | | ???????????????????####??????????????????????????? | | ???????????????????#^ ##????????????????????????? | | ???????????????????# #####???####?????????????? | | ????????????????????# #??## #?????????????? | | ???????????????????## #### ###?????????????? | | ??????????????????## # ##???????????????? | | ???????????????##?# #???????????????? | | ??????????????## ## @ #???????????????? | | ??????????????# # # #???????????????? | | ??????????????# ####### ##???????????????? | | ??????????????# #????# ###?????????????? | | ??????????????### ^ ##????## #?????????????? | | ????????????????# ^ #??????### ##?????????????? | | ????????????????# ## #????????###??????????????? | | ????????????????##?# #?????????????????????????? | | ??????????????????## #?????????????????????????? | | ?????????????????## #?????????????????????????? | | ????????????????## #?????????????????????????? | | ???????????????## ##????????????????????????? | | ???????????????# #????????????????????????? | | ???????????????# ^##???????????????????????? | | ???????????????# ## #???????????????????? | | ???????????????# #???????????????????? | | ???????????????# ??????????????? | | ??????????????## ### # ## ##???????????????? | | ??????????????# ##??# ## ?? ????????????????? | | ??????????????# ^ ##???##?###??????????????????? | | ??????????????## ##??????????????????????????? | | ???????????????## #??????????????????????????? | | ????????????????# #??????????????????????????? | | ????????????????## #??????????????????????????? | | ????????????????## ##??????????????????????????? | +----------------------------------------------------+ Best States ------------- Heat Dissipation 25 Energy Generation 14 Energy Capacity 250 Matter Stores 300 Matter Capacity 300 Sight Range 16 Terrain Scan Range 14 Terrain Scan Density 10 Evasion (%) 40 Recoil Reduction 2 Item Schematics ----------------- None Robot Schematics ------------------ None Fabricated ------------ Nothing Repaired ---------- Nothing Studied --------- None Alien Tech Used ----------------- None Achievements -------------- None Challenges ------------ None Game ------ Seed DefenseChargeThermoblaster Manual? 0 Play Time 00:09:03 Cumulative 23.5 hours Start 2025.12.28 @ 21:42:13 End 2025.12.28 @ 23:12:18 Sessions 2 Manual Loads 0 Difficulty Rogue Special Mode None Game No. 58 Rogue 58 Adventurer 0 Explorer 0 Win Type - Total 0 Types 0/0/0/0/0/0/0/0/0/0 Lore% 22 Gallery% 26 Achievement% 19 Wizard Run 0 Options --------- Layout 1 ASCII 0 Keyboard 0 Movement Mouse Keybinds 0 Fullscreen 1 Font 32/SmallcapsGlow Map View 50x35 Zoom Use 0% Tactical HUD 1 Map Filters NONE Filters NONE Steam 1 RUN: 3d6d0ff1-fa27-466c-ad81-261cc9df566f